[Event "Early-Titled-Tuesday-Blitz-November-28-2023"]
[Site "Chess.com"]
[Date "2023.11.28"]
[Round "3"]
[White "TheAlienParty"]
[Black "LizardMorrison"]
[Result "0-1"]
[WhiteElo "2373"]
[BlackElo "2188"]
[TimeControl "180+1"]
[EndTime "8:28:33 PST"]
[Termination "LizardMorrison won by resignation"]

1. Nf3 {[%clk 0:02:54]} 1... g6 {[%clk 0:02:55.9]} 2. h4 {[%clk 0:02:49.7]} 2...
h5 {[%clk 0:02:55.6]} 3. e4 {[%clk 0:02:47.3]} 3... Nc6 {[%clk 0:02:52.6]} 4. d4
{[%clk 0:02:46.6]} 4... d5 {[%clk 0:02:51.6]} 5. e5 {[%clk 0:02:45.7]} 5... Bg4
{[%clk 0:02:50.7]} 6. c3 {[%clk 0:02:44.4]} 6... e6 {[%clk 0:02:46.5]} 7. Be2
{[%clk 0:02:43.6]} 7... Nh6 {[%clk 0:02:40.7]} 8. Bg5 {[%clk 0:02:43.2]} 8...
Be7 {[%clk 0:02:39.4]} 9. Qd2 {[%clk 0:02:42]} 9... Nf5 {[%clk 0:02:38.6]} 10.
Na3 {[%clk 0:02:32.3]} 10... a6 {[%clk 0:02:36.9]} 11. Nc2 {[%clk 0:02:31.2]}
11... Qd7 {[%clk 0:02:33.1]} 12. Ne3 {[%clk 0:02:26.3]} 12... Bxf3 {[%clk
0:02:25.4]} 13. Bxf3 {[%clk 0:02:24.2]} 13... Bxg5 {[%clk 0:02:25.6]} 14. hxg5
{[%clk 0:02:22.5]} 14... Nxe3 {[%clk 0:02:22.6]} 15. Qxe3 {[%clk 0:02:20.5]}
15... O-O-O {[%clk 0:02:22.7]} 16. O-O-O {[%clk 0:02:18.5]} 16... Ne7 {[%clk
0:02:22.7]} 17. g4 {[%clk 0:02:16.8]} 17... hxg4 {[%clk 0:02:22.4]} 18. Bxg4
{[%clk 0:02:16.3]} 18... Nf5 {[%clk 0:02:22.2]} 19. Bxf5 {[%clk 0:02:16.2]}
19... gxf5 {[%clk 0:02:22.3]} 20. Rh6 {[%clk 0:02:12.5]} 20... Qe7 {[%clk
0:02:20.3]} 21. Rdh1 {[%clk 0:02:12.1]} 21... Rhg8 {[%clk 0:02:20.6]} 22. f4
{[%clk 0:02:06.8]} 22... c5 {[%clk 0:02:13.5]} 23. dxc5 {[%clk 0:02:05.9]} 23...
Kb8 {[%clk 0:02:10.5]} 24. Qd4 {[%clk 0:02:05.5]} 24... Rc8 {[%clk 0:02:09.2]}
25. b4 {[%clk 0:02:05.2]} 25... b6 {[%clk 0:02:01.6]} 26. cxb6 {[%clk
0:02:03.1]} 26... Rc4 {[%clk 0:02:01.8]} 27. Qd3 {[%clk 0:01:59.7]} 27... Qxb4
{[%clk 0:02:00.6]} 28. R1h3 {[%clk 0:01:56.6]} 28... Rgc8 {[%clk 0:01:57.9]} 29.
Rh8 {[%clk 0:01:50]} 29... Rxh8 {[%clk 0:01:42.7]} 30. Rxh8+ {[%clk 0:01:48.6]}
30... Kb7 {[%clk 0:01:43.3]} 31. Rh3 {[%clk 0:01:46.3]} 31... d4 {[%clk
0:01:35.5]} 32. Qf3+ {[%clk 0:01:30.7]} 32... Kxb6 {[%clk 0:01:33.4]} 33. Qa8
{[%clk 0:01:28.1]} 33... Rxc3+ {[%clk 0:01:27.6]} 34. Rxc3 {[%clk 0:01:27.7]}
34... Qxc3+ {[%clk 0:01:28.5]} 35. Kb1 {[%clk 0:01:25.6]} 35... Qe1+ {[%clk
0:01:27.5]} 36. Kb2 {[%clk 0:01:25.2]} 36... Qd2+ {[%clk 0:01:27.7]} 37. Kb1
{[%clk 0:01:23.3]} 37... Qd3+ {[%clk 0:01:26.8]} 38. Kb2 {[%clk 0:01:23.2]}
38... Qc3+ {[%clk 0:01:25.7]} 39. Kb1 {[%clk 0:01:23]} 39... d3 {[%clk
0:01:05.3]} 40. Qd8+ {[%clk 0:01:20.7]} 40... Kc5 {[%clk 0:01:05.3]} 41. Qd6+
{[%clk 0:01:14.6]} 41... Kc4 {[%clk 0:00:55.3]} 42. Qxa6+ {[%clk 0:01:13.7]}
42... Kd4 {[%clk 0:00:55.8]} 43. a3 {[%clk 0:00:50.6]} 43... Qb3+ {[%clk
0:00:51.4]} 44. Ka1 {[%clk 0:00:49.5]} 44... Qc3+ {[%clk 0:00:52.1]} 45. Ka2
{[%clk 0:00:48.8]} 45... d2 {[%clk 0:00:41.9]} 46. Qa4+ {[%clk 0:00:37.3]} 46...
Qc4+ {[%clk 0:00:38.1]} 47. Qxc4+ {[%clk 0:00:35.7]} 47... Kxc4 {[%clk
0:00:38.4]} 0-1

[Event "Early-Titled-Tuesday-Blitz-November-28-2023"]
[Site "Chess.com"]
[Date "2023.11.28"]
[Round "3"]
[White "tylityli"]
[Black "Mistango"]
[Result "0-1"]
[WhiteElo "2258"]
[BlackElo "2471"]
[TimeControl "180+1"]
[EndTime "8:28:41 PST"]
[Termination "Mistango won on time"]

1. d4 {[%clk 0:02:37]} 1... Nf6 {[%clk 0:02:59.6]} 2. c4 {[%clk 0:02:36.2]} 2...
g6 {[%clk 0:03:00.1]} 3. Nc3 {[%clk 0:02:36.3]} 3... Bg7 {[%clk 0:03:00.8]} 4.
e4 {[%clk 0:02:36.5]} 4... O-O {[%clk 0:03:01.6]} 5. Nge2 {[%clk 0:02:37.2]}
5... d6 {[%clk 0:03:01.9]} 6. Ng3 {[%clk 0:02:37.5]} 6... h5 {[%clk 0:03:01.7]}
7. Bg5 {[%clk 0:02:36.5]} 7... Nc6 {[%clk 0:03:00]} 8. d5 {[%clk 0:02:34.8]}
8... Ne5 {[%clk 0:02:58.5]} 9. f4 {[%clk 0:02:32.2]} 9... Neg4 {[%clk
0:02:58.6]} 10. h3 {[%clk 0:02:30.5]} 10... Ne3 {[%clk 0:02:58]} 11. Qe2 {[%clk
0:02:28.9]} 11... Nxf1 {[%clk 0:02:56.9]} 12. Rxf1 {[%clk 0:02:10.6]} 12... Nh7
{[%clk 0:02:55.3]} 13. Bh4 {[%clk 0:02:08.4]} 13... c5 {[%clk 0:02:52.9]} 14. e5
{[%clk 0:01:49.1]} 14... dxe5 {[%clk 0:02:41.5]} 15. f5 {[%clk 0:01:46.4]} 15...
g5 {[%clk 0:02:35]} 16. Nxh5 {[%clk 0:01:44.5]} 16... f6 {[%clk 0:02:27.3]} 17.
Nxg7 {[%clk 0:01:40.9]} 17... Kxg7 {[%clk 0:02:28.2]} 18. Bg3 {[%clk 0:01:36.9]}
18... a6 {[%clk 0:02:22.1]} 19. O-O-O {[%clk 0:01:13.1]} 19... b5 {[%clk
0:02:21]} 20. Ne4 {[%clk 0:01:11.9]} 20... bxc4 {[%clk 0:02:08.7]} 21. Nxc5
{[%clk 0:01:01.6]} 21... Qc7 {[%clk 0:01:22.1]} 22. Qxc4 {[%clk 0:00:56.6]}
22... Kh8 {[%clk 0:01:22]} 23. b3 {[%clk 0:00:46.4]} 23... Bd7 {[%clk
0:01:07.6]} 24. Nxd7 {[%clk 0:00:28.7]} 24... Qxd7 {[%clk 0:01:06.4]} 25. Kb2
{[%clk 0:00:28.4]} 25... Rfc8 {[%clk 0:01:06.2]} 26. Qb4 {[%clk 0:00:18.9]}
26... a5 {[%clk 0:01:04.5]} 27. Qa4 {[%clk 0:00:16.8]} 27... Qxa4 {[%clk
0:01:02.6]} 28. bxa4 {[%clk 0:00:15.1]} 28... Rab8+ {[%clk 0:01:03.1]} 29. Ka1
{[%clk 0:00:13.9]} 29... Rc2 {[%clk 0:01:03]} 30. Rf2 {[%clk 0:00:12.8]} 30...
Rc3 {[%clk 0:01:02.3]} 31. Rf3 {[%clk 0:00:07.8]} 31... Rxf3 {[%clk 0:00:54.4]}
32. gxf3 {[%clk 0:00:08.7]} 32... Rb4 {[%clk 0:00:54.4]} 33. d6 {[%clk
0:00:05.5]} 33... exd6 {[%clk 0:00:55.3]} 34. Rxd6 {[%clk 0:00:05.1]} 34... Rxa4
{[%clk 0:00:55.2]} 35. Kb2 {[%clk 0:00:04.7]} 35... Rb4+ {[%clk 0:00:50.1]} 36.
Kc3 {[%clk 0:00:03.9]} 36... Rb1 {[%clk 0:00:50.5]} 37. Ra6 {[%clk 0:00:01.6]}
37... Rf1 {[%clk 0:00:50.7]} 0-1

[Event "Early-Titled-Tuesday-Blitz-November-28-2023"]
[Site "Chess.com"]
[Date "2023.11.28"]
[Round "3"]
[White "stratacticos"]
[Black "VladimirBugayev"]
[Result "0-1"]
[WhiteElo "1737"]
[BlackElo "2332"]
[TimeControl "180+1"]
[EndTime "8:28:42 PST"]
[Termination "VladimirBugayev won on time"]

1. e4 {[%clk 0:03:00.9]} 1... c6 {[%clk 0:02:59.4]} 2. d4 {[%clk 0:03:00.1]}
2... d5 {[%clk 0:03:00]} 3. e5 {[%clk 0:02:59.6]} 3... Bf5 {[%clk 0:02:59.5]} 4.
h4 {[%clk 0:02:56.9]} 4... h5 {[%clk 0:02:59.5]} 5. Bd3 {[%clk 0:02:56.2]} 5...
Bxd3 {[%clk 0:02:56.7]} 6. Qxd3 {[%clk 0:02:55.5]} 6... Qa5+ {[%clk 0:02:57.4]}
7. Bd2 {[%clk 0:02:53]} 7... Qb5 {[%clk 0:02:53.6]} 8. Qxb5 {[%clk 0:02:40]}
8... cxb5 {[%clk 0:02:53.6]} 9. Nc3 {[%clk 0:02:39.3]} 9... Nc6 {[%clk
0:02:47.5]} 10. Nxd5 {[%clk 0:02:34.1]} 10... O-O-O {[%clk 0:02:42.4]} 11. Nc3
{[%clk 0:02:29.4]} 11... Nxd4 {[%clk 0:02:42.3]} 12. O-O-O {[%clk 0:02:27.1]}
12... a6 {[%clk 0:02:39]} 13. Rh3 {[%clk 0:02:26.3]} 13... e6 {[%clk 0:02:34.9]}
14. Nf3 {[%clk 0:02:15.7]} 14... Nf5 {[%clk 0:02:28.9]} 15. Ng5 {[%clk
0:02:06.8]} 15... Ngh6 {[%clk 0:02:27.2]} 16. a3 {[%clk 0:02:01.3]} 16... Be7
{[%clk 0:02:23.4]} 17. Rhh1 {[%clk 0:01:50.2]} 17... Rd4 {[%clk 0:01:51.7]} 18.
g3 {[%clk 0:01:39.1]} 18... Rhd8 {[%clk 0:01:45]} 19. Ne2 {[%clk 0:01:23.9]}
19... R4d5 {[%clk 0:01:38.3]} 20. Bc3 {[%clk 0:01:18.3]} 20... Bxg5+ {[%clk
0:01:24.5]} 21. hxg5 {[%clk 0:01:16.3]} 21... Rxd1+ {[%clk 0:01:24.6]} 22. Rxd1
{[%clk 0:01:09.1]} 22... Rxd1+ {[%clk 0:01:24]} 23. Kxd1 {[%clk 0:01:08.9]}
23... Ng4 {[%clk 0:01:24.7]} 24. f3 {[%clk 0:00:58.3]} 24... Nge3+ {[%clk
0:01:21]} 25. Kd2 {[%clk 0:00:51.7]} 25... Nf1+ {[%clk 0:01:20.7]} 26. Kd3
{[%clk 0:00:51.3]} 26... N1xg3 {[%clk 0:01:20.8]} 27. Nf4 {[%clk 0:00:35.1]}
27... g6 {[%clk 0:01:15.7]} 28. Be1 {[%clk 0:00:28.5]} 28... Kd7 {[%clk
0:01:04.9]} 29. Nh3 {[%clk 0:00:22.1]} 29... Kc6 {[%clk 0:01:02.4]} 30. Nf2
{[%clk 0:00:22]} 30... Ne7 {[%clk 0:00:41.6]} 31. b3 {[%clk 0:00:20.2]} 31...
Ngf5 {[%clk 0:00:41]} 32. c4 {[%clk 0:00:19.3]} 32... bxc4+ {[%clk 0:00:40]} 33.
bxc4 {[%clk 0:00:19.4]} 33... b5 {[%clk 0:00:38.3]} 34. Ne4 {[%clk 0:00:16.3]}
34... bxc4+ {[%clk 0:00:34.4]} 35. Kxc4 {[%clk 0:00:16.2]} 35... Nd5 {[%clk
0:00:32.7]} 36. Bd2 {[%clk 0:00:09.3]} 36... h4 {[%clk 0:00:32.2]} 0-1

[Event "Early-Titled-Tuesday-Blitz-November-28-2023"]
[Site "Chess.com"]
[Date "2023.11.28"]
[Round "3"]
[White "FoxOnTheRun97"]
[Black "KaydenTroffChess"]
[Result "1-0"]
[WhiteElo "2568"]
[BlackElo "2777"]
[TimeControl "180+1"]
[EndTime "8:28:46 PST"]
[Termination "FoxOnTheRun97 won on time"]

1. d4 {[%clk 0:03:00.9]} 1... Nf6 {[%clk 0:02:58.7]} 2. Bg5 {[%clk 0:03:00.6]}
2... d5 {[%clk 0:02:58]} 3. Nd2 {[%clk 0:02:59.9]} 3... Nbd7 {[%clk 0:02:57.9]}
4. e3 {[%clk 0:03:00.1]} 4... g6 {[%clk 0:02:57.7]} 5. f4 {[%clk 0:02:57]} 5...
Bg7 {[%clk 0:02:56.9]} 6. Ngf3 {[%clk 0:02:56.9]} 6... h6 {[%clk 0:02:52.8]} 7.
Bh4 {[%clk 0:02:56.5]} 7... c5 {[%clk 0:02:48.5]} 8. c3 {[%clk 0:02:56.1]} 8...
Qc7 {[%clk 0:02:44.5]} 9. Bd3 {[%clk 0:02:49.6]} 9... cxd4 {[%clk 0:02:42.3]}
10. cxd4 {[%clk 0:02:50.5]} 10... O-O {[%clk 0:02:39.4]} 11. Rc1 {[%clk
0:02:46.9]} 11... Qa5 {[%clk 0:02:29.7]} 12. a3 {[%clk 0:02:41.3]} 12... Qb6
{[%clk 0:02:19]} 13. Qc2 {[%clk 0:02:32.9]} 13... Ng4 {[%clk 0:02:14.6]} 14. Ke2
{[%clk 0:02:14.9]} 14... Qe6 {[%clk 0:02:05.2]} 15. Bf2 {[%clk 0:02:09.9]} 15...
Nxf2 {[%clk 0:02:02.5]} 16. Kxf2 {[%clk 0:02:10.8]} 16... Nf6 {[%clk 0:02:02.4]}
17. h3 {[%clk 0:02:08.1]} 17... Bd7 {[%clk 0:02:00.8]} 18. Ne5 {[%clk
0:02:03.7]} 18... Rfc8 {[%clk 0:01:55.3]} 19. Qb3 {[%clk 0:02:03.2]} 19... Bc6
{[%clk 0:01:54.2]} 20. g4 {[%clk 0:01:43.1]} 20... Nd7 {[%clk 0:01:43.3]} 21.
Nxd7 {[%clk 0:01:38.1]} 21... Qxd7 {[%clk 0:01:33.8]} 22. Nf3 {[%clk 0:01:21.8]}
22... Rf8 {[%clk 0:01:22.4]} 23. Rhg1 {[%clk 0:01:15.2]} 23... Rac8 {[%clk
0:01:18.4]} 24. h4 {[%clk 0:01:12.1]} 24... Qe6 {[%clk 0:00:48.3]} 25. h5 {[%clk
0:00:59.2]} 25... Kh8 {[%clk 0:00:37.7]} 26. Rh1 {[%clk 0:00:45]} 26... Qxg4
{[%clk 0:00:34]} 27. Rcg1 {[%clk 0:00:44.9]} 27... Qe6 {[%clk 0:00:31.2]} 28.
hxg6 {[%clk 0:00:44.7]} 28... fxg6 {[%clk 0:00:19.4]} 29. Rxg6 {[%clk
0:00:45.6]} 29... Rf6 {[%clk 0:00:18.7]} 30. Rxf6 {[%clk 0:00:42]} 30... Qxf6
{[%clk 0:00:17.5]} 31. Ne5 {[%clk 0:00:40.2]} 31... Qe6 {[%clk 0:00:14.5]} 32.
Bb1 {[%clk 0:00:36.4]} 32... Bxe5 {[%clk 0:00:12.8]} 33. Qd3 {[%clk 0:00:31.6]}
33... Qf7 {[%clk 0:00:09.6]} 34. dxe5 {[%clk 0:00:30.5]} 34... Qg7 {[%clk
0:00:08.6]} 35. Rg1 {[%clk 0:00:29.3]} 35... Qf7 {[%clk 0:00:08.1]} 36. e6
{[%clk 0:00:27.3]} 1-0

[Event "Early-Titled-Tuesday-Blitz-November-28-2023"]
[Site "Chess.com"]
[Date "2023.11.28"]
[Round "3"]
[White "parintele_chess"]
[Black "Ron_Weasley_Chess"]
[Result "0-1"]
[WhiteElo "2185"]
[BlackElo "2392"]
[TimeControl "180+1"]
[EndTime "8:28:47 PST"]
[Termination "Ron_Weasley_Chess won by resignation"]

1. d4 {[%clk 0:03:00.9]} 1... Nf6 {[%clk 0:02:59.9]} 2. Bf4 {[%clk 0:03:00.8]}
2... c5 {[%clk 0:02:59.3]} 3. e3 {[%clk 0:03:00.5]} 3... g6 {[%clk 0:02:57.7]}
4. Nf3 {[%clk 0:02:53.8]} 4... Bg7 {[%clk 0:02:56.8]} 5. Nbd2 {[%clk 0:02:53.7]}
5... O-O {[%clk 0:02:56.6]} 6. c3 {[%clk 0:02:53.9]} 6... b6 {[%clk 0:02:56.6]}
7. Be2 {[%clk 0:02:52.8]} 7... Bb7 {[%clk 0:02:56.6]} 8. h3 {[%clk 0:02:53]}
8... d6 {[%clk 0:02:56.7]} 9. O-O {[%clk 0:02:53.1]} 9... Nc6 {[%clk 0:02:56.4]}
10. dxc5 {[%clk 0:02:51.2]} 10... dxc5 {[%clk 0:02:55.3]} 11. Qc2 {[%clk
0:02:51.2]} 11... Nd5 {[%clk 0:02:48.9]} 12. Bh2 {[%clk 0:02:45.9]} 12... e5
{[%clk 0:02:49.1]} 13. Rad1 {[%clk 0:02:44.1]} 13... Qe7 {[%clk 0:02:47.7]} 14.
Nc4 {[%clk 0:02:39.9]} 14... Rad8 {[%clk 0:02:46.3]} 15. e4 {[%clk 0:02:35.7]}
15... Nf4 {[%clk 0:02:46]} 16. Ne3 {[%clk 0:02:28.7]} 16... Qc7 {[%clk
0:02:26.7]} 17. Bxf4 {[%clk 0:02:26.8]} 17... exf4 {[%clk 0:02:26.9]} 18. Nd5
{[%clk 0:02:27.3]} 18... Qb8 {[%clk 0:02:27.6]} 19. a4 {[%clk 0:02:15]} 19...
Rfe8 {[%clk 0:02:24.1]} 20. Bc4 {[%clk 0:02:08.4]} 20... Ne5 {[%clk 0:02:18.5]}
21. Nxe5 {[%clk 0:02:01]} 21... Bxe5 {[%clk 0:02:18.4]} 22. f3 {[%clk
0:01:59.1]} 22... Kg7 {[%clk 0:02:05.8]} 23. a5 {[%clk 0:01:49]} 23... bxa5
{[%clk 0:01:56]} 24. Ra1 {[%clk 0:01:35.5]} 24... Bxd5 {[%clk 0:01:48.8]} 25.
Bxd5 {[%clk 0:01:35]} 25... Qb6 {[%clk 0:01:47.6]} 26. b3 {[%clk 0:01:22.8]}
26... c4+ {[%clk 0:01:44.2]} 27. Kh1 {[%clk 0:01:09.9]} 27... cxb3 {[%clk
0:01:44.2]} 28. Bxb3 {[%clk 0:01:08.7]} 28... Qe3 {[%clk 0:01:30.1]} 29. Rad1
{[%clk 0:00:54.4]} 29... Bxc3 {[%clk 0:01:28.3]} 30. Bd5 {[%clk 0:00:44]} 30...
Bb4 {[%clk 0:01:23.7]} 31. Qb2+ {[%clk 0:00:41.1]} 31... Qc3 {[%clk 0:01:23.1]}
32. Qe2 {[%clk 0:00:35.3]} 32... Rd6 {[%clk 0:01:14.5]} 33. Qb5 {[%clk
0:00:34.4]} 33... Red8 {[%clk 0:01:14.3]} 34. Qb7 {[%clk 0:00:28.6]} 34... R8d7
{[%clk 0:01:14]} 35. Qa8 {[%clk 0:00:23.8]} 35... a4 {[%clk 0:01:13.7]} 36. Rfe1
{[%clk 0:00:17]} 36... Qc7 {[%clk 0:00:40.2]} 37. Rf1 {[%clk 0:00:07.8]} 37...
Rd8 {[%clk 0:00:39.6]} 38. Qb7 {[%clk 0:00:06.9]} 38... Qxb7 {[%clk 0:00:39.4]}
0-1

[Event "Early-Titled-Tuesday-Blitz-November-28-2023"]
[Site "Chess.com"]
[Date "2023.11.28"]
[Round "3"]
[White "DeArron_Fox"]
[Black "Doomfist26"]
[Result "1-0"]
[WhiteElo "2482"]
[BlackElo "2617"]
[TimeControl "180+1"]
[EndTime "8:28:50 PST"]
[Termination "DeArron_Fox won by checkmate"]

1. d4 {[%clk 0:03:00.9]} 1... Nf6 {[%clk 0:02:58.2]} 2. c4 {[%clk 0:03:01.4]}
2... e6 {[%clk 0:02:58.8]} 3. Nf3 {[%clk 0:03:01.7]} 3... d5 {[%clk 0:02:59.3]}
4. Nc3 {[%clk 0:03:00.1]} 4... Nbd7 {[%clk 0:02:57.8]} 5. cxd5 {[%clk
0:02:46.3]} 5... exd5 {[%clk 0:02:58.7]} 6. Bg5 {[%clk 0:02:46]} 6... Bb4 {[%clk
0:02:54.3]} 7. e3 {[%clk 0:02:43.3]} 7... h6 {[%clk 0:02:48.1]} 8. Bh4 {[%clk
0:02:42.8]} 8... O-O {[%clk 0:02:40.1]} 9. Bd3 {[%clk 0:02:41.6]} 9... c5 {[%clk
0:02:39.9]} 10. O-O {[%clk 0:02:39.9]} 10... c4 {[%clk 0:02:38.6]} 11. Bc2
{[%clk 0:02:30.6]} 11... Be7 {[%clk 0:02:37.4]} 12. Ne5 {[%clk 0:02:10.1]} 12...
a6 {[%clk 0:02:33.8]} 13. Nxd7 {[%clk 0:02:03.5]} 13... Bxd7 {[%clk 0:02:32.9]}
14. Bxf6 {[%clk 0:02:03]} 14... Bxf6 {[%clk 0:02:32.6]} 15. Nxd5 {[%clk
0:02:03.6]} 15... Bg5 {[%clk 0:02:33.2]} 16. f4 {[%clk 0:01:28.1]} 16... Bh4
{[%clk 0:02:31.1]} 17. g3 {[%clk 0:01:10]} 17... Bh3 {[%clk 0:02:29.4]} 18. Nc3
{[%clk 0:00:26.3]} 18... Bxf1 {[%clk 0:02:28.1]} 19. Qxf1 {[%clk 0:00:27.2]}
19... Be7 {[%clk 0:02:27.5]} 20. Qxc4 {[%clk 0:00:27.7]} 20... b5 {[%clk
0:02:27.1]} 21. Qd3 {[%clk 0:00:27.1]} 21... g6 {[%clk 0:02:27.2]} 22. f5 {[%clk
0:00:24.8]} 22... Qd6 {[%clk 0:02:20.2]} 23. fxg6 {[%clk 0:00:17.4]} 23... fxg6
{[%clk 0:02:20]} 24. Qxg6+ {[%clk 0:00:04.3]} 24... Qxg6 {[%clk 0:02:20.9]} 25.
Bxg6 {[%clk 0:00:04.8]} 25... Kg7 {[%clk 0:02:21.6]} 26. Bd3 {[%clk 0:00:02.4]}
26... Bg5 {[%clk 0:02:21.6]} 27. Re1 {[%clk 0:00:02.5]} 27... Rae8 {[%clk
0:02:22]} 28. e4 {[%clk 0:00:03.1]} 28... Rd8 {[%clk 0:02:22.3]} 29. d5 {[%clk
0:00:03.5]} 29... b4 {[%clk 0:02:21.9]} 30. Na4 {[%clk 0:00:03.2]} 30... Be7
{[%clk 0:02:16.2]} 31. Bxa6 {[%clk 0:00:02.9]} 31... Rfe8 {[%clk 0:02:10.4]} 32.
Bb5 {[%clk 0:00:02.9]} 32... Rf8 {[%clk 0:02:11]} 33. Bc6 {[%clk 0:00:03.4]}
33... h5 {[%clk 0:01:48.3]} 34. e5 {[%clk 0:00:03.8]} 34... h4 {[%clk
0:01:48.9]} 35. d6 {[%clk 0:00:03.3]} 35... Bg5 {[%clk 0:01:49.6]} 36. Nc5
{[%clk 0:00:02.9]} 36... hxg3 {[%clk 0:01:38.1]} 37. Ne6+ {[%clk 0:00:02.9]}
37... Kg6 {[%clk 0:01:38.7]} 38. hxg3 {[%clk 0:00:02.8]} 38... Rh8 {[%clk
0:01:35.2]} 39. Nxd8 {[%clk 0:00:03]} 39... Rxd8 {[%clk 0:01:36.1]} 40. Ba4
{[%clk 0:00:02.2]} 40... Kf5 {[%clk 0:01:33.1]} 41. Bc2+ {[%clk 0:00:02.7]}
41... Ke6 {[%clk 0:01:33.1]} 42. Bb3+ {[%clk 0:00:03.4]} 42... Kf5 {[%clk
0:01:33.8]} 43. e6 {[%clk 0:00:02.2]} 43... Rxd6 {[%clk 0:01:25.7]} 44. e7
{[%clk 0:00:02.5]} 44... Bxe7 {[%clk 0:01:26.6]} 45. Rxe7 {[%clk 0:00:02.9]}
45... Rd2 {[%clk 0:01:27.5]} 46. Rf7+ {[%clk 0:00:02.5]} 46... Kg4 {[%clk
0:01:27.5]} 47. Rf2 {[%clk 0:00:03.4]} 47... Rd4 {[%clk 0:01:26.8]} 48. Kg2
{[%clk 0:00:03.1]} 48... Rd3 {[%clk 0:01:27.4]} 49. Be6+ {[%clk 0:00:02.7]}
49... Kg5 {[%clk 0:01:27.8]} 50. b3 {[%clk 0:00:02.3]} 50... Re3 {[%clk
0:01:28.4]} 51. Bc4 {[%clk 0:00:02.7]} 51... Rc3 {[%clk 0:01:29.3]} 52. Bb5
{[%clk 0:00:02.5]} 52... Kg4 {[%clk 0:01:30.2]} 53. Rf4+ {[%clk 0:00:02.4]}
53... Kg5 {[%clk 0:01:30.9]} 54. Rxb4 {[%clk 0:00:02.5]} 54... Rc2+ {[%clk
0:01:31.3]} 55. Kf3 {[%clk 0:00:02.9]} 55... Rxa2 {[%clk 0:01:32.2]} 56. Bd3
{[%clk 0:00:02.9]} 56... Ra1 {[%clk 0:01:33.1]} 57. Rb5+ {[%clk 0:00:02.9]}
57... Kf6 {[%clk 0:01:33.3]} 58. Rc5 {[%clk 0:00:03.4]} 58... Rc1 {[%clk
0:01:34]} 59. Rxc1 {[%clk 0:00:03.2]} 59... Ke5 {[%clk 0:01:27.4]} 60. b4 {[%clk
0:00:04.1]} 60... Kd4 {[%clk 0:01:28.1]} 61. b5 {[%clk 0:00:05]} 61... Kxd3
{[%clk 0:01:29]} 62. b6 {[%clk 0:00:05.5]} 62... Kd2 {[%clk 0:01:29.9]} 63. Rc8
{[%clk 0:00:05.4]} 63... Ke1 {[%clk 0:01:29.9]} 64. b7 {[%clk 0:00:06.3]} 64...
Kd2 {[%clk 0:01:30.8]} 65. b8=Q {[%clk 0:00:07.2]} 65... Ke1 {[%clk 0:01:31.7]}
66. Qe5+ {[%clk 0:00:07.6]} 66... Kd2 {[%clk 0:01:32.6]} 67. Qd4+ {[%clk
0:00:08.1]} 67... Ke1 {[%clk 0:01:33]} 68. Rc1# {[%clk 0:00:08.7]} 1-0

[Event "Early-Titled-Tuesday-Blitz-November-28-2023"]
[Site "Chess.com"]
[Date "2023.11.28"]
[Round "3"]
[White "pinguino120"]
[Black "Pingah9"]
[Result "0-1"]
[WhiteElo "2284"]
[BlackElo "2548"]
[TimeControl "180+1"]
[EndTime "8:28:50 PST"]
[Termination "Pingah9 won by resignation"]

1. e4 {[%clk 0:03:00.9]} 1... c5 {[%clk 0:02:59.1]} 2. Nf3 {[%clk 0:02:57.2]}
2... e6 {[%clk 0:02:59]} 3. c3 {[%clk 0:02:54.3]} 3... d5 {[%clk 0:02:57.9]} 4.
e5 {[%clk 0:02:52.8]} 4... d4 {[%clk 0:02:57.5]} 5. d3 {[%clk 0:02:48.3]} 5...
Nc6 {[%clk 0:02:55.3]} 6. g3 {[%clk 0:02:43.6]} 6... Nge7 {[%clk 0:02:54.4]} 7.
Bg2 {[%clk 0:02:42.5]} 7... Ng6 {[%clk 0:02:54.4]} 8. Qe2 {[%clk 0:02:42.7]}
8... Qc7 {[%clk 0:02:52.1]} 9. Na3 {[%clk 0:02:39.6]} 9... Ngxe5 {[%clk
0:02:46.4]} 10. Bf4 {[%clk 0:02:27.5]} 10... Nxf3+ {[%clk 0:02:43.7]} 11. Bxf3
{[%clk 0:02:26.1]} 11... e5 {[%clk 0:02:43.1]} 12. Nb5 {[%clk 0:02:02.2]} 12...
Qb8 {[%clk 0:02:39.3]} 13. Bxc6+ {[%clk 0:02:01.1]} 13... bxc6 {[%clk
0:02:39.4]} 14. Bxe5 {[%clk 0:01:51]} 14... Qxb5 {[%clk 0:02:20.7]} 15. Bxg7+
{[%clk 0:01:50.9]} 15... Be6 {[%clk 0:02:19.2]} 16. Bxh8 {[%clk 0:01:51.1]}
16... O-O-O {[%clk 0:02:18.6]} 17. O-O {[%clk 0:01:34.2]} 17... dxc3 {[%clk
0:01:51.5]} 18. Bxc3 {[%clk 0:01:30.2]} 18... Rxd3 {[%clk 0:01:45.1]} 19. a4
{[%clk 0:01:12.1]} 19... Rxg3+ {[%clk 0:01:44.2]} 20. hxg3 {[%clk 0:01:08.3]}
20... Qxe2 {[%clk 0:01:43.6]} 21. Rfe1 {[%clk 0:01:08.8]} 21... Qh5 {[%clk
0:01:40.2]} 22. Rad1 {[%clk 0:01:07.8]} 22... Bd5 {[%clk 0:01:14.5]} 23. Rxd5
{[%clk 0:00:55.3]} 23... cxd5 {[%clk 0:01:15.4]} 24. Re8+ {[%clk 0:00:54.9]}
24... Kd7 {[%clk 0:01:14.3]} 25. Rxf8 {[%clk 0:00:55.1]} 25... d4 {[%clk
0:01:14.1]} 26. Ba5 {[%clk 0:00:54.5]} 26... Qd1+ {[%clk 0:01:06.5]} 27. Kg2
{[%clk 0:00:54.4]} 27... Qxa4 {[%clk 0:01:05.9]} 28. Bd2 {[%clk 0:00:47.4]}
28... Qc6+ {[%clk 0:01:04.1]} 29. Kg1 {[%clk 0:00:41.6]} 29... Ke6 {[%clk
0:01:02.9]} 30. Bf4 {[%clk 0:00:39.6]} 30... c4 {[%clk 0:01:00.6]} 31. Rd8
{[%clk 0:00:37.7]} 31... Qc5 {[%clk 0:00:56.2]} 32. Re8+ {[%clk 0:00:36]} 32...
Kd7 {[%clk 0:00:51.6]} 33. Re5 {[%clk 0:00:36.1]} 33... Qc6 {[%clk 0:00:46]} 34.
Rf5 {[%clk 0:00:32.6]} 34... Ke8 {[%clk 0:00:40.6]} 35. Re5+ {[%clk 0:00:32.6]}
35... Kd7 {[%clk 0:00:40.5]} 36. Rf5 {[%clk 0:00:33]} 36... Qe4 {[%clk
0:00:34.7]} 37. Rxf7+ {[%clk 0:00:28.9]} 37... Kc6 {[%clk 0:00:34.4]} 38. Rf6+
{[%clk 0:00:28.7]} 38... Kb5 {[%clk 0:00:33.4]} 39. Kh2 {[%clk 0:00:23.9]} 39...
c3 {[%clk 0:00:31.1]} 40. bxc3 {[%clk 0:00:23.2]} 40... dxc3 {[%clk 0:00:32]}
41. Rf7 {[%clk 0:00:19.4]} 41... a5 {[%clk 0:00:31.3]} 42. Rb7+ {[%clk
0:00:18.7]} 42... Qxb7 {[%clk 0:00:30.4]} 0-1